fUSD/lending_fUSD_20260107
["ID","MTS","AMOUNT","RATE_DAILY","PERIOD"]
[400732351,1767802250663,-1100.79986322,0.000159,2]
[400732352,1767802250675,-838.48,0.000159,2]
[400732353,1767802250688,-3135.72513468,0.000159,2]
[400732354,1767802250698,-4080687.94269945,0.00018,2]
[400732357,1767802250709,-615.00501975,0.00018,2]
[400732384,1767802250960,-4271.67027316,0.00018,2]
[400732447,1767802253354,-151.0,0.00016283,2]
[400732448,1767802253366,-151.0,0.00016283,2]
[400732449,1767802253379,-8408.36797746,0.00018,2]
[400732450,1767802253393,-416.99100729,0.00018,2]
[400732451,1767802253635,-24131.80871402,0.00018,2]
[400732452,1767802254364,-351.5521247,0.0001535,2]
[400732453,1767802254458,-597.39245643,0.0001535,2]
[400732454,1767802254469,-4884.54070561,0.000159,2]
[400732455,1767802254519,-190.46429229,0.000159,2]
[400732456,1767802254531,-12255.50848488,0.00018,2]
[400732457,1767802254931,-11761.31024111,0.00018,2]
[400732460,1767802291667,30619.8183,0.00014914,2]
[400732465,1767802294924,500.0,0.0001489,2]
[400732466,1767802295185,500.0,0.00014945,2]
[400732467,1767802295396,500.0,0.00015,2]
[400732468,1767802295484,723.0,0.0001489,2]
[400732469,1767802295637,723.0,0.00014945,2]
[400732470,1767802295774,723.0,0.00015,2]
[400732471,1767802296083,150.0,0.0001489,2]
[400732472,1767802296687,500.0,0.0001489,2]
[400732473,1767802296813,500.0,0.00014945,2]
[400732474,1767802296923,500.0,0.00015,2]
[400732475,1767802299392,500.0,0.0001489,2]
[400732476,1767802299588,500.0,0.00014945,2]
[400732477,1767802299770,490.93864057,0.00015,2]
[400732478,1767802327083,767849.83815373,0.00014904,2]
[400732479,1767802327123,232150.16184627,0.00014904,2]
[400732480,1767802360768,835.48,0.00015,2]
[400732482,1767802361285,835.48,0.00015,2]
[400732483,1767802362260,835.48,0.00015,2]
[400732484,1767802363402,307.93,0.00015,2]
[400732490,1767802409540,-500.0,0.00015013,2]
[400732491,1767802409577,-502.7457157,0.00015013,2]
[400732492,1767802409614,-523.03584053,0.00015013,2]
[400732493,1767802409649,-500.0,0.00015013,2]
[400732494,1767802409685,-500.0,0.00015013,2]
[400732495,1767802409720,-500.0,0.00015013,2]
[400732496,1767802409756,-500.0,0.00015013,2]
[400732497,1767802409791,-500.0,0.00015013,2]
[400732498,1767802409824,-500.0,0.00015013,2]
[400732499,1767802409857,-448.44688754,0.00015013,2]
[400732500,1767802411114,-51.55311246,0.00015013,2]
[400732501,1767802411155,-500.0,0.00015013,2]
[400732502,1767802411898,-9000.01,0.00015013,2]
[400732503,1767802412327,-10000.01,0.00015013,2]
[400732504,1767802413222,-10000.01,0.00015013,2]
[400732505,1767802416278,-3999.97,0.00015013,2]
[400732506,1767802416314,-220.50523453,0.00015023,2]
[400732507,1767802416347,-500.0,0.00015023,2]
[400732508,1767802416381,-59.05953094,0.00015054,2]
[400732509,1767802416518,-440.94046906,0.00015054,2]
[400732510,1767802416612,-723.0,0.00015054,2]
[400732511,1767802416648,-500.0,0.00015054,2]
[400732512,1767802416683,-500.0,0.00015109,2]
[400732513,1767802416717,-723.0,0.00015109,2]
[400732514,1767802416750,-500.0,0.00015109,2]
[400732515,1767802416783,-1000.0,0.00015148,2]
[400732516,1767802416815,-300.0,0.00015163,2]
[400732517,1767802416848,-350.0,0.00015164,2]
[400732518,1767802416882,-85.01,0.00015164,2]
[400732519,1767802417313,-637.99,0.00015164,2]
[400732521,1767802434272,500.0,0.00014904,2]
[400732527,1767802455409,1000000.0,0.00014904,2]
[400732529,1767802511502,310.18,0.0002,30]
[400732539,1767802604935,1000000.0,0.00014913,2]
[400732540,1767802621318,1399.95823759,0.00032877,120]
[400732544,1767802725729,999.0,0.00015409,3]
[400732549,1767802805800,161.0,0.00029595,120]
[400732550,1767802807006,161.0,0.00031074,120]
[400732551,1767802809174,161.0,0.00032628,120]
[400732560,1767802885436,200.0,0.00014768,2]
[400732563,1767802904790,559.43203233,0.000202,30]
[400732564,1767802918298,767.92,0.00014793,2]
[400732565,1767802950692,150.0,0.00014663,2]
[400732567,1767802977234,13937.25,0.00014663,2]
[400732568,1767802994371,323.63,0.00014692,2]
[400732569,1767803059065,-1100.0,0.00015004,2]
[400732570,1767803059097,-1105.00292435,0.00015004,2]
[400732571,1767803059130,-275.0,0.00015004,2]
[400732572,1767803059163,-250.0,0.00015005,2]
[400732573,1767803059196,-500.0,0.00015013,2]
[400732574,1767803059229,-500.0,0.00015013,2]
[400732575,1767803059260,-500.0,0.00015073,2]
[400732576,1767803059291,-552.50710843,0.00015073,2]
[400732577,1767803059897,-434.98993444,0.00015073,2]
[400732578,1767803066221,1852.42,0.00014927,2]
[400732579,1767803066670,-65.01006556,0.00015073,2]
[400732580,1767803066705,-500.0,0.00015073,2]
[400732581,1767803066746,-500.0,0.00015073,2]
[400732582,1767803066781,-1200.0,0.00015147,2]
[400732583,1767803066814,-1000.0,0.00015148,2]
[400732584,1767803066849,-206.40340234,0.00015164,2]
[400732585,1767803067597,-3057.1830642,0.00015164,2]
[400732586,1767803070343,-3156.8807285,0.00015164,2]
[400732587,1767803070377,-300.0,0.0001517,2]
[400732588,1767803070410,-999.99,0.00015171,2]
[400732589,1767803070686,-1086.268543,0.00015171,2]
[400732590,1767803073710,-3452.771457,0.00015171,2]
[400732591,1767803074277,-3094.467086,0.00015171,2]
[400732592,1767803079947,-1000.0,0.00015073,2]
[400732593,1767803079983,-1094.487086,0.00015171,2]
[400732594,1767803080318,-5811.035828,0.00015171,2]
[400732595,1767803080473,-300.0,0.00015172,2]
[400732596,1767803080496,-160.554,0.00015172,2]
[400732597,1767803080520,-1117.10427862,0.00015172,2]
[400732598,1767803085767,-2253.89072138,0.00015172,2]
[400732599,1767803085802,-500.0,0.00015172,2]
[400732600,1767803085838,-500.0,0.00015172,2]
[400732601,1767803085874,-500.0,0.00015172,2]
[400732602,1767803085911,-500.0,0.00015172,2]
[400732603,1767803085946,-399.93476173,0.00015172,2]
[400732604,1767803085985,-333.54736125,0.00015172,2]
[400732605,1767803086698,-25.26431128,0.00015172,2]
[400732606,1767803089483,-490.24752991,0.00015172,2]
[400732607,1767803089525,-500.0,0.00015172,2]
[400732608,1767803089564,-168.20989863,0.00015172,2]
[400732609,1767803089605,-500.0,0.00015172,2]
[400732610,1767803089645,-500.0,0.00015172,2]
[400732611,1767803089685,-500.0,0.00015172,2]
[400732612,1767803089728,-500.0,0.00015172,2]
[400732613,1767803089771,-500.0,0.00015172,2]
[400732614,1767803089813,-500.0,0.00015172,2]
[400732615,1767803089852,-500.0,0.00015172,2]
[400732616,1767803089894,-183.09514292,0.00015172,2]
[400732617,1767803090076,-316.90485708,0.00015172,2]
[400732618,1767803090113,-202.67080647,0.00015172,2]
[400732619,1767803090153,-500.0,0.00015172,2]
[400732620,1767803090194,-500.0,0.00015172,2]
[400732621,1767803090236,-500.0,0.00015172,2]
[400732622,1767803090276,-500.0,0.00015172,2]
[400732623,1767803090316,-430.0,0.00015172,2]
[400732624,1767803096202,-220.23381288,0.00015173,2]
[400732625,1767803101449,300.0,0.00015172,2]
[400732626,1767803101683,300.0,0.00015172,2]
[400732627,1767803101765,1200.0,0.00015172,2]
[400732628,1767803106411,500.0,0.00015073,2]
[400732629,1767803106502,500.0,0.00015073,2]
[400732630,1767803106958,500.0,0.00015073,2]
[400732631,1767803108099,-229.00065208,0.00015173,2]
[400732632,1767803109173,161.0,0.00027653,120]
[400732634,1767803111256,161.0,0.00029035,120]
[400732635,1767803112847,161.0,0.00030487,120]
[400732636,1767803113941,161.0,0.00032012,120]
[400732637,1767803125665,-349.99934792,0.00015173,2]
[400732638,1767803144186,1109.26559335,0.00015172,5]
[400732639,1767803168037,500.0,0.00015073,2]
[400732640,1767803170018,500.0,0.00015073,2]
[400732641,1767803170605,500.0,0.00015073,2]
[400732642,1767803170829,500.0,0.00015073,2]
[400732643,1767803170923,500.0,0.00015073,2]
[400732645,1767803182220,435.21936051,0.00015172,2]
[400732646,1767803192336,411.7990286,0.00015172,2]
[400732647,1767803192418,500.0,0.00015172,2]
[400732648,1767803192507,233.48315288,0.00015172,2]
[400732649,1767803193210,500.0,0.00015172,2]
[400732650,1767803193434,157.38140572,0.00015172,2]
[400732651,1767803201685,500.0,0.00015172,2]
[400732652,1767803201779,288.68998874,0.00015172,2]
[400732653,1767803203878,1000.0,0.00015073,2]
[400732654,1767803209093,163.43820701,0.00015172,2]
[400732655,1767803221716,300.0,0.00015172,2]
[400732656,1767803226626,500.0,0.00015073,2]
[400732657,1767803227267,500.0,0.00015073,2]
[400732658,1767803228055,500.0,0.00015073,2]
[400732659,1767803228557,500.0,0.00015073,2]
[400732660,1767803230186,500.0,0.00015073,2]
[400732661,1767803230886,151.0,0.00015173,2]
[400732662,1767803231178,151.0,0.00015173,2]
[400732663,1767803231815,151.0,0.00015173,2]
[400732664,1767803232303,56.99885654,0.00015085,2]
[400732665,1767803232335,10000.01,0.00015085,2]
[400732666,1767803232367,10000.01,0.00015085,2]
[400732667,1767803232399,3079.73142169,0.00015085,2]
[400732668,1767803232477,151.0,0.00015173,2]
[400732669,1767803233092,151.0,0.00015173,2]
[400732670,1767803233728,151.0,0.00015173,2]
[400732671,1767803234642,151.0,0.00015173,2]
[400732672,1767803234982,151.0,0.00015173,2]
[400732673,1767803235598,151.0,0.00015173,2]
[400732674,1767803236185,151.0,0.00015173,2]
[400732675,1767803236862,151.0,0.00015173,2]
[400732676,1767803241581,-2412.27857831,0.00015173,2]
[400732680,1767803242208,-10000.01,0.00015173,2]
[400732681,1767803242570,-10000.01,0.00015173,2]
[400732683,1767803246540,-10000.01,0.00015173,2]
[400732684,1767803246687,-10000.01,0.00015173,2]
[400732685,1767803246849,-10000.01,0.00015173,2]
[400732686,1767803251046,-10000.01,0.00015173,2]
[400732687,1767803251265,-10000.01,0.00015173,2]
[400732688,1767803251332,-10000.01,0.00015173,2]
[400732690,1767803296710,776.843,0.00015,2]
[400732691,1767803305686,-255.38617095,0.00015067,2]
[400732692,1767803309937,-122.68382905,0.00015067,2]
[400732693,1767803309962,-237.23316124,0.00015073,2]
[400732694,1767803309987,-27.89550772,0.00015073,2]
[400732695,1767803312028,-305.02621265,0.00015073,2]
[400732698,1767803315438,-167.07827963,0.00015073,2]
[400732699,1767803315466,-268.72779371,0.00015073,2]
[400732700,1767803320197,-250.72191932,0.00015073,2]
[400732701,1767803320220,-162.68115368,0.00015073,2]
[400732702,1767803322715,-337.31884632,0.00015073,2]
[400732703,1767803322749,-500.0,0.00015073,2]
[400732704,1767803322785,-500.0,0.00015073,2]
[400732705,1767803322820,-438.43604995,0.00015073,2]
[400732706,1767803322854,-500.0,0.00015073,2]
[400732707,1767803322887,-500.0,0.00015073,2]
[400732708,1767803322922,-402.93406541,0.00015085,2]
[400732709,1767803322960,-1140.58206064,0.00015097,2]
[400732710,1767803323276,-203.86,0.00015097,2]
[400732711,1767803323364,-1157.60795536,0.00015097,2]
[400732712,1767803323373,-203.86,0.00015172,2]
[400732713,1767803326453,-96.14,0.00015172,2]
[400732714,1767803326486,-87.80017844,0.00015172,2]
[400732715,1767803328601,-412.19982156,0.00015172,2]
[400732716,1767803328646,-300.0,0.00015172,2]
[400732717,1767803328693,-500.0,0.00015172,2]
[400732720,1767803353409,200.0,0.00014989,2]
[400732721,1767803354279,-154.09944903,0.00015073,2]
[400732722,1767803358740,208.78,0.00014943,2]
[400732723,1767803358803,-319.82522726,0.00015073,2]
[400732724,1767803359996,-26.07532371,0.00015073,2]
[400732725,1767803360022,-287.14766954,0.00015073,2]
[400732731,1767803362386,-212.85233046,0.00015073,2]
[400732732,1767803362411,-49.10804207,0.00015073,2]
[400732733,1767803366878,-300.0,0.00015073,2]
[400732734,1767803368906,-150.89195793,0.00015073,2]
[400732735,1767803368931,-24.99525904,0.00015073,2]
[400732736,1767803370026,-475.00474096,0.00015073,2]
[400732737,1767803370052,-68.53120432,0.00015073,2]
[400732738,1767803372195,-329.17058229,0.00015073,2]
[400732739,1767803373673,-102.29821339,0.00015073,2]
[400732740,1767803373698,-113.26857948,0.00015073,2]
[400732741,1767803376927,-886.73142052,0.00015073,2]
[400732742,1767803376959,-265.15810212,0.00015173,2]
[400732743,1767803380426,-215.73776141,0.00015173,2]
[400732744,1767803382433,-321.13614272,0.00015173,2]
[400732745,1767803383681,-161.34487945,0.00015173,2]
[400732746,1767803395172,-228.98084791,0.00015163,2]
[400732747,1767803398446,-443.47598748,0.00015163,2]
[400732748,1767803398875,-4427.93547312,0.00015163,2]
[400732749,1767803400013,-303.37599486,0.00015173,2]
[400732750,1767803401819,300.0,0.00015172,2]
[400732751,1767803401857,300.0,0.00015172,2]
[400732752,1767803401919,544.13905376,0.00015172,2]
[400732753,1767803402362,-249.00116379,0.00015172,2]
[400732754,1767803404591,164.0,0.0003102,120]
[400732755,1767803407269,-286.41327817,0.00015073,2]
[400732756,1767803407753,-213.58672183,0.00015073,2]
[400732757,1767803407798,-500.0,0.00015073,2]
[400732758,1767803407841,-480.04186632,0.00015073,2]
[400732759,1767803407883,-406.85978245,0.00015172,2]
[400732760,1767803407927,-300.0,0.00015172,2]
[400732761,1767803409631,196.23996705,0.00015172,2]
[400732762,1767803415506,500.0,0.00015073,2]
[400732763,1767803416850,500.0,0.00015073,2]
[400732764,1767803416901,500.0,0.00015073,2]
[400732765,1767803417148,500.0,0.00015073,2]
[400732766,1767803418956,217.37935844,0.00015085,2]
[400732767,1767803421388,500.0,0.00015073,2]
[400732768,1767803423541,3285.41393331,0.00015163,2]
[400732769,1767803423629,10000.01,0.00015163,2]
[400732770,1767803423719,8645.84606669,0.00015163,2]
[400732771,1767803424087,1354.16393331,0.00015163,2]
[400732772,1767803424182,10000.01,0.00015163,2]
[400732773,1767803424272,10000.01,0.00015163,2]
[400732774,1767803424366,577.08606669,0.00015163,2]
[400732775,1767803424453,-635.07253898,0.00015173,2]
[400732776,1767803426505,-258.65582907,0.00015173,2]
[400732797,1767803432083,-80856.67009526,0.00015173,2]
[400732798,1767803432094,-1594.4736441,0.00015173,2]
[400732885,1767803432982,-511.71246314,0.00015173,2]
[400732896,1767803433077,-26985.27124948,0.00015173,2]
[400732898,1767803433088,-9304.73442201,0.00015173,2]
[400732900,1767803433099,-546.11999998,0.00015173,2]
[400732902,1767803433110,-416.604407,0.00015173,2]
[400732904,1767803433121,-482.41,0.00015173,2]
[400732947,1767803434866,150.0,0.00014946,2]
[400732949,1767803437865,-793929.93007923,0.00015173,2]
[400732951,1767803437877,-195.0,0.00015185,2]
[400732953,1767803437887,-300.0,0.00015196,2]
[400732955,1767803437896,-300.0,0.00015196,2]
[400732957,1767803437906,-2500.0,0.00015196,2]
[400732959,1767803437915,-195.0,0.00015219,2]
[400732961,1767803437924,-300.0,0.00015289,2]
[400732963,1767803437933,-195.0,0.00015381,2]
[400732965,1767803437943,-23136.75027823,0.00015398,2]
[400732967,1767803437952,-636.64,0.00015409,2]
[400732968,1767803437961,-555.28,0.00015409,2]
[400732970,1767803437970,-120691.93219234,0.00015514,2]
[400732972,1767803437979,-217.37935842,0.0001552,2]
[400732975,1767803437989,-500.0,0.00015547,2]
[400732977,1767803437999,-500.0,0.00015547,2]
[400732979,1767803438008,-500.0,0.00015547,2]
[400732981,1767803438019,-505.79783251,0.00015547,2]
[400732983,1767803438029,-500.0,0.00015547,2]
[400732984,1767803438039,-500.0,0.00015547,2]
[400732986,1767803438049,-1000.0,0.00015621,2]
[400732989,1767803438059,-1000.0,0.00015621,2]
[400732990,1767803438069,-1000.73448024,0.00015621,2]
[400732992,1767803438079,-1000.0,0.00015621,2]
[400732994,1767803438088,-1000.0,0.00015621,2]
[400732996,1767803438098,-1000.0,0.00015621,2]
[400732999,1767803438108,-1000.0,0.00015621,2]
[400733001,1767803438117,-1000.0,0.00015621,2]
[400733002,1767803438127,-1000.0,0.00015621,2]
[400733003,1767803438136,-1000.0,0.00015621,2]
[400733004,1767803438145,-1128.37348131,0.00015621,2]
[400733005,1767803438154,-1000.0,0.00015621,2]
[400733006,1767803438163,-509.96734995,0.00015621,2]
[400733007,1767803438172,-23136.75027823,0.00015711,2]
[400733008,1767803438182,-299.99,0.00015805,2]
[400733009,1767803438191,-150.99,0.0001581,2]
[400733010,1767803438200,-378.07,0.00015904,2]
[400733011,1767803438210,-150.0,0.00015943,2]
[400733012,1767803438219,-150.0,0.00015943,2]
[400733013,1767803438229,-500.0,0.00015943,2]
[400733014,1767803438238,-500.0,0.00015943,2]
[400733015,1767803438247,-500.0,0.00015943,2]
[400733016,1767803438256,-150.0,0.00015943,2]
[400733017,1767803438265,-500.0,0.00015943,2]
[400733018,1767803438274,-500.0,0.00015943,2]
[400733019,1767803438284,-150.0,0.00015943,2]
[400733020,1767803438294,-150.0,0.00015943,2]
[400733021,1767803438303,-150.0,0.00015943,2]
[400733022,1767803438312,-150.0,0.00015943,2]
[400733024,1767803438322,-150.0,0.00015943,2]
[400733026,1767803438331,-150.0,0.00015943,2]
[400733028,1767803438341,-500.0,0.00015943,2]
[400733030,1767803438351,-500.0,0.00015943,2]
[400733032,1767803438360,-500.0,0.00015943,2]
[400733034,1767803438370,-150.0,0.00015943,2]
[400733036,1767803438380,-150.0,0.00015943,2]
[400733038,1767803438389,-500.0,0.00015943,2]
[400733040,1767803438399,-150.0,0.00015943,2]
[400733042,1767803438408,-150.0,0.00015943,2]
[400733044,1767803438419,-543.0,0.00015943,2]
[400733046,1767803438429,-150.0,0.00015943,2]
[400733048,1767803438438,-500.0,0.00015943,2]
[400733050,1767803438447,-500.0,0.00015943,2]
[400733052,1767803438457,-150.0,0.00015943,2]
[400733054,1767803438467,-150.0,0.00015943,2]
[400733056,1767803438478,-500.0,0.00015943,2]
[400733058,1767803438488,-500.0,0.00015943,2]
[400733060,1767803438498,-217.37935842,0.00015954,2]
[400733062,1767803438509,-1455.64956121,0.0001599,2]
[400733064,1767803438518,-163.5623375,0.00015998,2]
[400733066,1767803438530,-500.0,0.00015998,2]
[400733068,1767803438541,-518.0508841,0.00015998,2]
[400733070,1767803438552,-233.54101023,0.00015998,2]
[400733072,1767803438561,-500.0,0.00015998,2]
[400733074,1767803438571,-500.0,0.00015998,2]
[400733076,1767803438581,-500.0,0.00015998,2]
[400733078,1767803438593,-150.0,0.00015998,2]
[400733080,1767803438603,-150.0,0.00015998,2]
[400733082,1767803438612,-150.0,0.00015998,2]
[400733084,1767803438622,-150.0,0.00015998,2]
[400733086,1767803438631,-150.0,0.00015998,2]
[400733088,1767803438641,-150.0,0.00015998,2]
[400733090,1767803438650,-500.0,0.00015998,2]
[400733092,1767803438659,-500.0,0.00015998,2]
[400733094,1767803438668,-500.0,0.00015998,2]
[400733096,1767803438679,-150.0,0.00015998,2]
[400733098,1767803438688,-500.0,0.00015998,2]
[400733100,1767803438697,-150.0,0.00015998,2]
[400733102,1767803438707,-543.0,0.00015998,2]
[400733104,1767803438716,-500.0,0.00015998,2]
[400733105,1767803438725,-500.0,0.00015998,2]
[400733107,1767803438735,-150.0,0.00015998,2]
[400733109,1767803438744,-150.0,0.00015998,2]
[400733111,1767803438753,-500.0,0.00015998,2]
[400733113,1767803438762,-125503.01687635,0.00016,2]
[400733115,1767803438772,-62012.17182182,0.00016,4]
[400733117,1767803438783,-151.0,0.00016022,2]
[400733119,1767803438793,-23136.75027823,0.00016023,2]
[400733121,1767803438805,-151.0,0.00016024,2]
[400733123,1767803438814,-500.0,0.00016053,2]
[400733125,1767803438824,-500.0,0.00016053,2]
[400733127,1767803438833,-500.0,0.00016053,2]
[400733129,1767803438843,-500.0,0.00016053,2]
[400733131,1767803438853,-150.0,0.00016053,2]
[400733133,1767803438862,-150.0,0.00016053,2]
[400733135,1767803438873,-150.0,0.00016053,2]
[400733137,1767803438884,-150.0,0.00016053,2]
[400733139,1767803438894,-150.0,0.00016053,2]
[400733141,1767803438903,-216.79854945,0.00016053,2]
[400733143,1767803438913,-576.96699474,0.00016053,2]
[400733145,1767803438923,-499.84469649,0.00016053,2]
[400733147,1767803438933,-500.0,0.00016053,2]
[400733149,1767803438943,-150.0,0.00016053,2]
[400733151,1767803438953,-344.00411142,0.00016053,2]
[400733153,1767803438963,-291.37376107,0.00016053,2]
[400733155,1767803438972,-543.0,0.00016053,2]
[400733157,1767803438983,-500.0,0.00016053,2]
[400733159,1767803438993,-500.0,0.00016053,2]
[400733161,1767803439002,-150.0,0.00016053,2]
[400733163,1767803439012,-150.0,0.00016053,2]
[400733165,1767803439023,-500.0,0.00016053,2]
[400733167,1767803439037,-151.55763012,0.00016054,2]
[400733169,1767803439047,-322.6107,0.00016054,2]
[400733171,1767803439056,-448.72451731,0.00016054,2]
[400733173,1767803439066,-1500.0,0.00016054,2]
[400733175,1767803439076,-500.0,0.00016054,2]
[400733177,1767803439086,-1500.0,0.00016054,2]
[400733179,1767803439096,-500.0,0.00016054,2]
[400733181,1767803439106,-1500.0,0.00016054,2]
[400733182,1767803439116,-500.0,0.00016054,2]
[400733184,1767803439127,-1500.0,0.00016054,2]
[400733186,1767803439137,-500.0,0.00016054,2]
[400733188,1767803439148,-1500.0,0.00016054,2]
[400733190,1767803439158,-200.0,0.00016054,2]
[400733193,1767803439168,-500.0,0.00016054,2]
[400733194,1767803439179,-1500.0,0.00016054,2]
[400733197,1767803439190,-207.4,0.00016054,2]
[400733198,1767803439200,-500.0,0.00016054,2]
[400733200,1767803439210,-1500.0,0.00016054,2]
[400733202,1767803439220,-255.49772714,0.00016054,2]
[400733204,1767803439229,-215.0738,0.00016054,2]
[400733206,1767803439239,-1500.0,0.00016054,2]
[400733208,1767803439249,-223.0315306,0.00016054,2]
[400733210,1767803439259,-1500.0,0.00016054,2]
[400733212,1767803439268,-231.28369723,0.00016054,2]
[400733215,1767803439278,-1500.0,0.00016054,2]
[400733216,1767803439288,-239.84119403,0.00016054,2]
[400733218,1767803439297,-1500.0,0.00016054,2]
[400733220,1767803439307,-248.71531821,0.00016054,2]
[400733222,1767803439316,-257.91778498,0.00016054,2]
[400733224,1767803439325,-500.0,0.00016054,2]
[400733226,1767803439334,-267.46074303,0.00016054,2]
[400733228,1767803439343,-500.0,0.00016054,2]
[400733230,1767803439352,-277.35679052,0.00016054,2]
[400733232,1767803439362,-500.0,0.00016054,2]
[400733234,1767803439371,-500.0,0.00016054,2]
[400733236,1767803439381,-620.0,0.00016054,2]
[400733238,1767803439390,-500.0,0.00016054,2]
[400733241,1767803439400,-500.0,0.00016054,2]
[400733243,1767803439410,-500.0,0.00016054,2]
[400733245,1767803439419,-574.12855637,0.00016054,2]
[400733247,1767803439428,-500.0,0.00016054,2]
[400733249,1767803439437,-327.23086226,0.00016054,2]
[400733250,1767803439447,-2000.0,0.00016054,2]
[400733253,1767803439458,-500.0,0.00016054,2]
[400733255,1767803439467,-2000.0,0.00016054,2]
[400733257,1767803439478,-500.0,0.00016054,2]
[400733259,1767803439487,-2000.0,0.00016054,2]
[400733260,1767803439497,-500.0,0.00016054,2]
[400733262,1767803439506,-2000.0,0.00016054,2]
[400733265,1767803439516,-500.0,0.00016054,2]
[400733266,1767803439527,-2000.0,0.00016054,2]
[400733268,1767803439537,-500.0,0.00016054,2]
[400733270,1767803439547,-2000.0,0.00016054,2]
[400733272,1767803439556,-500.0,0.00016054,2]
[400733275,1767803439565,-2000.0,0.00016054,2]
[400733278,1767803439575,-500.0,0.00016054,2]
[400733281,1767803439584,-2000.0,0.00016054,2]
[400733284,1767803439593,-500.0,0.00016054,2]
[400733287,1767803439603,-2000.0,0.00016054,2]
[400733289,1767803439611,-500.0,0.00016054,2]
[400733291,1767803439621,-2000.0,0.00016054,2]
[400733293,1767803439630,-500.0,0.00016054,2]
[400733295,1767803439640,-2000.0,0.00016054,2]
[400733297,1767803439649,-500.0,0.00016054,2]
[400733299,1767803439659,-250.0,0.00016054,2]
[400733301,1767803439668,-250.0,0.00016054,2]
[400733304,1767803439677,-1016.77,0.00016054,2]
[400733305,1767803439687,-500.0,0.00016107,2]
[400733308,1767803439697,-500.0,0.00016107,2]
[400733309,1767803439706,-421.23482998,0.00016107,2]
[400733311,1767803439716,-150.0,0.00016107,2]
[400733314,1767803439725,-179.07668943,0.00016107,2]
[400733316,1767803439734,-150.0,0.00016107,2]
[400733318,1767803439744,-152.36175589,0.00016107,2]
[400733320,1767803439753,-178.03708143,0.00016107,2]
[400733322,1767803439762,-500.0,0.00016107,2]
[400733323,1767803439771,-256.3800823,0.00016107,2]
[400733326,1767803439781,-543.0,0.00016107,2]
[400733328,1767803439790,-500.0,0.00016107,2]
[400733329,1767803439803,-150.0,0.00016107,2]
[400733332,1767803439812,-150.0,0.00016107,2]
[400733334,1767803439821,-500.0,0.00016107,2]
[400733335,1767803439830,-2891.68450317,0.0001613,2]
[400733337,1767803439839,-500.0,0.00016162,2]
[400733339,1767803439850,-349.62704522,0.00016162,2]
[400733341,1767803439859,-281.40504741,0.00016162,2]
[400733344,1767803439870,-174.06741652,0.00016162,2]
[400733346,1767803439880,-500.0,0.00016162,2]
[400733348,1767803439889,-543.0,0.00016162,2]
[400733350,1767803439900,-500.0,0.00016162,2]
[400733351,1767803439909,-179.16326783,0.00016162,2]
[400733354,1767803439919,-285.51728142,0.00016162,2]
[400733355,1767803439928,-500.0,0.00016162,2]
[400733357,1767803439937,-1500.0,0.00016168,2]
[400733359,1767803439947,-1500.0,0.00016168,2]
[400733361,1767803439956,-1500.0,0.00016168,2]
[400733363,1767803439965,-518.35967674,0.00016168,2]